fUSD/lending_fUSD_20240701
["ID","MTS","AMOUNT","RATE_DAILY","PERIOD"]
[330836726,1719850238403,-278.7580366,0.00021897,2]
[330836728,1719850238417,-278.7580366,0.00021897,2]
[330836730,1719850238429,-491.0,0.000219,4]
[330836733,1719850238443,-982.0,0.000219,4]
[330836735,1719850238456,-982.0,0.000219,4]
[330836737,1719850238468,-257.0,0.000219,2]
[330836739,1719850238480,-191.0,0.000219,4]
[330836741,1719850238491,-1001.18,0.000219,2]
[330836743,1719850238503,-21420.45093261,0.00021907,2]
[330836772,1719850238858,-278.7580366,0.00021897,2]
[330836773,1719850238868,-37998.02418719,0.00021907,2]
[330836774,1719850238888,-3415.28583551,0.00021907,2]
[330836867,1719850240113,-278.7580366,0.00021897,2]
[330836870,1719850240125,-278.7580366,0.00021897,2]
[330836872,1719850240138,-114.40722689,0.00021897,2]
[330836993,1719850397004,3072.15423039,0.00011199,2]
[330836994,1719850418902,155.0,0.00011199,2]
[330836999,1719850509788,185.18053106,0.00011199,2]
[330837001,1719850531006,150.0,0.00021922,120]
[330837007,1719851191553,150.0,0.00022123,120]
[330837173,1719851432661,-168.58,0.00016064,2]
[330837174,1719851432671,-490.89,0.00016808,2]
[330837178,1719851437807,-7217.23404349,0.00016808,2]
[330837180,1719851437820,-409.16,0.00018155,2]
[330837181,1719851437831,-3138.0,0.000186,3]
[330837182,1719851437843,-155.0,0.00018919,2]
[330837183,1719851437855,-155.0,0.00018919,2]
[330837184,1719851437867,-227.0716558,0.00018919,2]
[330837185,1719851437879,-276.10780549,0.00019069,2]
[330837186,1719851437890,-1000.0,0.00019378,2]
[330837187,1719851437901,-1500.0,0.00019451,2]
[330837188,1719851437913,-3967.1,0.000195,2]
[330837189,1719851437923,-1000.0,0.00019688,2]
[330837190,1719851437935,-451.73086549,0.00019863,2]
[330837191,1719851437946,-150.19,0.00019976,2]
[330837192,1719851437957,-1624.51093593,0.0002,2]
[330837193,1719851437969,-250.0,0.00020016,2]
[330837194,1719851437982,-270.0,0.0002003,2]
[330837195,1719851437993,-250.0,0.00020034,2]
[330837196,1719851438004,-208.58,0.00020048,2]
[330837197,1719851438014,-210.46,0.00020054,2]
[330837198,1719851438026,-1246.0,0.00020083,30]
[330837199,1719851438037,-526.78,0.00020103,2]
[330837200,1719851438048,-800.0,0.00020146,2]
[330837201,1719851438058,-409.16,0.00020419,2]
[330837202,1719851438069,-200.0,0.00020496,2]
[330837203,1719851438080,-1250.0,0.00021,2]
[330837204,1719851438091,-225.19167095,0.00021,2]
[330837205,1719851438103,-2000.0,0.00021,6]
[330837206,1719851438114,-500.0,0.00021188,2]
[330837207,1719851438125,-200.0,0.00021188,2]
[330837208,1719851438136,-211.0,0.0002128,2]
[330837209,1719851438146,-32072.63849955,0.0002137,2]
[330837226,1719851438574,-17927.36150045,0.0002137,2]
[330837228,1719851438587,-1132.62983178,0.000214,2]
[330837377,1719851440092,-1174.31752417,0.000214,2]
[330837379,1719851440104,-193.05264405,0.000214,2]
[330837381,1719851440113,-66.99117654,0.00021644,2]
[330837411,1719851440399,-527.77882346,0.00021644,2]
[330837413,1719851440409,-300.0,0.00021671,2]
[330837415,1719851440419,-218.0,0.0002169,2]
[330837417,1719851440428,-211.0,0.0002169,2]
[330837419,1719851440438,-238.6659,0.00021807,2]
[330837420,1719851440447,-220.18,0.00021808,3]
[330837422,1719851440456,-321.44547856,0.00021817,2]
[330837425,1719851440471,-215.83609171,0.00021817,2]
[330837427,1719851440481,-167.64494156,0.00021817,2]
[330837429,1719851440490,-172.52775424,0.00021817,4]
[330837431,1719851440500,-1459.58725741,0.00021875,2]
[330837433,1719851440512,-558.18343399,0.00021875,2]
[330837435,1719851440523,-201.89781561,0.00021884,2]
[330837553,1719851442723,-399.90842983,0.00021817,2]
[330837556,1719851442735,-665.65141588,0.00021884,2]
[330837558,1719851442747,-188.41139262,0.00021889,2]
[330837559,1719851442756,-188.41139262,0.0002189,2]
[330837562,1719851442766,-188.41139262,0.0002189,2]
[330837565,1719851442777,-150.15610057,0.0002189,2]
[330837613,1719851443381,-38.25529205,0.0002189,2]
[330837614,1719851443392,-1274.88625925,0.00021891,2]
[330837615,1719851443401,-158.1,0.00021897,2]
[330837616,1719851443411,-188.41139262,0.00021897,2]
[330837617,1719851443420,-188.41139262,0.00021897,2]
[330837618,1719851443429,-188.41139262,0.00021897,2]
[330837619,1719851443439,-188.41139262,0.00021897,2]
[330837620,1719851443449,-188.41139262,0.00021897,2]
[330837621,1719851443459,-188.41139262,0.00021897,2]
[330837622,1719851443474,-188.41139262,0.00021897,2]
[330837623,1719851443483,-188.41139262,0.00021897,2]
[330837624,1719851443492,-188.41139262,0.00021897,2]
[330837625,1719851443502,-188.41139262,0.00021897,2]
[330837626,1719851443512,-188.41139262,0.00021897,2]
[330837627,1719851443521,-188.41139262,0.00021897,2]
[330837628,1719851443531,-188.41139262,0.00021897,2]
[330837629,1719851443540,-188.41139262,0.00021897,2]
[330837630,1719851443549,-188.41139262,0.00021897,2]
[330837631,1719851443559,-188.41139262,0.00021897,2]
[330837632,1719851443568,-188.41139262,0.00021897,2]
[330837633,1719851443577,-188.41139262,0.00021897,2]
[330837634,1719851443588,-188.41139262,0.00021897,2]
[330837635,1719851443598,-188.41139262,0.00021897,2]
[330837637,1719851443607,-188.41139262,0.00021897,2]
[330837638,1719851443617,-188.41139262,0.00021897,2]
[330837639,1719851443626,-188.41139262,0.00021897,2]
[330837640,1719851443635,-188.41139262,0.00021897,2]
[330837641,1719851443645,-50.18995581,0.00021897,2]
[330837661,1719851445960,-138.22143681,0.00021897,2]
[330837662,1719851445970,-188.41139262,0.00021897,2]
[330837663,1719851445979,-188.41139262,0.00021897,2]
[330837664,1719851445989,-188.41139262,0.00021897,2]
[330837665,1719851445999,-188.41139262,0.00021897,2]
[330837666,1719851446008,-188.41139262,0.00021897,2]
[330837667,1719851446017,-188.41139262,0.00021897,2]
[330837668,1719851446027,-188.41139262,0.00021897,2]
[330837669,1719851446036,-188.41139262,0.00021897,2]
[330837670,1719851446045,-188.41139262,0.00021897,2]
[330837671,1719851446054,-188.41139262,0.00021897,2]
[330837672,1719851446063,-188.41139262,0.00021897,2]
[330837673,1719851446073,-188.41139262,0.00021897,2]
[330837674,1719851446082,-188.41139262,0.00021897,2]
[330837675,1719851446091,-188.41139262,0.00021897,2]
[330837676,1719851446100,-188.41139262,0.00021897,2]
[330837677,1719851446109,-188.41139262,0.00021897,2]
[330837678,1719851446118,-188.41139262,0.00021897,2]
[330837679,1719851446128,-188.41139262,0.00021897,2]
[330837680,1719851446137,-188.41139262,0.00021897,2]
[330837681,1719851446146,-188.41139262,0.00021897,2]
[330837682,1719851446155,-188.41139262,0.00021897,2]
[330837683,1719851446164,-188.41139262,0.00021897,2]
[330837684,1719851446173,-188.41139262,0.00021897,2]
[330837685,1719851446182,-188.41139262,0.00021897,2]
[330837686,1719851446192,-188.41139262,0.00021897,2]
[330837687,1719851446201,-188.41139262,0.00021897,2]
[330837688,1719851446211,-188.41139262,0.00021897,2]
[330837689,1719851446220,-188.41139262,0.00021897,2]
[330837690,1719851446229,-188.41139262,0.00021897,2]
[330837691,1719851446239,-188.41139262,0.00021897,2]
[330837692,1719851446248,-188.41139262,0.00021897,2]
[330837693,1719851446257,-188.41139262,0.00021897,2]
[330837694,1719851446266,-188.41139262,0.00021897,2]
[330837695,1719851446275,-188.41139262,0.00021897,2]
[330837696,1719851446283,-188.41139262,0.00021897,2]
[330837697,1719851446293,-188.41139262,0.00021897,2]
[330837698,1719851446302,-188.41139262,0.00021897,2]
[330837699,1719851446312,-188.41139262,0.00021897,2]
[330837701,1719851446321,-188.41139262,0.00021897,2]
[330837703,1719851446330,-188.41139262,0.00021897,2]
[330837705,1719851446339,-6275.55847085,0.00021899,2]
[330837707,1719851446349,-491.0,0.000219,4]
[330837709,1719851446358,-982.0,0.000219,4]
[330837711,1719851446367,-982.0,0.000219,4]
[330837713,1719851446377,-258.0,0.000219,2]
[330837715,1719851446386,-190.0,0.000219,4]
[330837717,1719851446396,-1013.44,0.000219,2]
[330837719,1719851446406,-7600.0,0.00021904,2]
[330837721,1719851446415,-1089.55055981,0.00021906,5]
[330837723,1719851446424,-201.17402604,0.00021907,2]
[330837725,1719851446434,-40940.83752659,0.00021907,2]
[330837728,1719851446450,-9511.7355,0.00021907,2]
[330837730,1719851446462,-949.65318571,0.00021907,2]
[330838238,1719851551054,150.0,0.00021618,120]
[330838240,1719851624356,50858.63566706,0.00014,2]
[330838243,1719851670413,-150.0,0.00022268,120]
[330838244,1719851670439,-150.0,0.00022288,120]
[330838245,1719851670469,-29700.0,0.000225,120]
[330838249,1719851773946,-30000.0,0.000225,120]
[330838254,1719851821601,-2367.8976,0.000118,2]
[330838256,1719851858289,7243.17768869,0.000118,2]
[330838257,1719851862807,348.53483336,0.000118,2]
[330838259,1719851962812,40.38987795,0.000118,2]
[330838260,1719851962834,251.70068089,0.000118,2]
[330838262,1719851982010,9748.29931911,0.00011199,2]
[330838263,1719851982032,2529.0,0.00011199,2]
[330838264,1719851982056,12500.0,0.00011199,2]
[330838265,1719851982081,87231.04020679,0.00011199,2]
[330838266,1719852002667,150.0,0.00011199,2]
[330838267,1719852002866,150.0,0.00011199,2]
[330838268,1719852003051,150.0,0.00011199,2]
[330838269,1719852003245,150.0,0.00011199,2]
[330838270,1719852003427,150.0,0.00011199,2]
[330838271,1719852003885,150.0,0.00011199,2]
[330838272,1719852003927,150.0,0.00011199,2]
[330838273,1719852004019,150.0,0.00011199,2]
[330838274,1719852004213,150.0,0.00011199,2]
[330838275,1719852004415,159.89396103,0.00011199,2]
[330838291,1719852328451,702.24261395,0.00011199,2]
[330838293,1719852407098,890.0,0.0001601,30]
[330838308,1719852462942,2004.4104095,0.00011199,2]
[330838309,1719852492472,504.94138761,0.00011199,2]
[330838391,1719852555507,26468.76947861,0.00011199,2]
[330838515,1719852586436,3106.52214219,0.00011199,2]
[330838516,1719852586970,820.81121981,0.00011199,2]
[330838520,1719852606848,3388.91049904,0.00011199,2]
[330838521,1719852612544,1610.98666035,0.00011199,2]
[330838522,1719852612565,1177.77944101,0.00011199,2]
[330838523,1719852624494,671.6187311,0.00011199,2]
[330838524,1719852627905,3460.14760246,0.00011199,2]
[330838543,1719852632052,-359.16532702,0.00012302,2]
[330838554,1719852632213,-288.09934345,0.00012302,2]
[330838555,1719852632226,-265.44197524,0.00012302,2]
[330838556,1719852632236,-565.90421164,0.00012314,2]
[330838557,1719852632248,-59.59669037,0.00012314,2]
[330838558,1719852632257,-1245.94065498,0.0001251,2]
[330838559,1719852632352,-30.77224655,0.0001251,2]
[330838560,1719852632425,-364.58992945,0.0001251,2]
[330838561,1719852632435,-1305.53734535,0.0001251,2]
[330838562,1719852632444,-1452.53356908,0.00013128,2]
[330838568,1719852638190,-11.14015005,0.00013128,2]
[330838569,1719852638199,-1719.96025146,0.00013128,2]
[330838570,1719852638209,-475.43641296,0.00013472,2]
[330838571,1719852638219,-150.0,0.00013573,2]
[330838572,1719852638228,-2409.32012221,0.0001387,2]
[330838573,1719852638239,-599.60477382,0.00013981,2]
[330838574,1719852638248,-268.98,0.0001399,3]
[330838575,1719852638258,-132484.55614614,0.00014,2]
[330838576,1719852638780,-44217.24691179,0.00014,2]
[330838584,1719852640276,-3140.04385146,0.00014,2]
[330838586,1719852640288,-332.7597774,0.00014,2]
[330838588,1719852640393,-3328.29870834,0.00014,2]
[330838589,1719852640405,-5198.16634652,0.00014,2]
[330838590,1719852640461,-155.20254689,0.00013128,2]
[330838591,1719852640471,-251.21752365,0.00014,2]
[330838592,1719852640482,-2930.71735568,0.00014,2]
[330838593,1719852640516,-2868.43341692,0.00014,2]
[330838594,1719852640586,-3027.95925375,0.00014,2]
[330838635,1719852643235,-641.5247125,0.00014,2]
[330838636,1719852643248,-667.35,0.00014,2]
[330838637,1719852643303,-1757.24990833,0.00014,2]
[330838638,1719852643370,-21277.02201902,0.00014,2]
[330838639,1719852643382,-361.6920653,0.00014,2]
[330838640,1719852643430,-527.46202022,0.00014,2]
[330838641,1719852643442,-167226.319387,0.00014,2]
[330838642,1719852643452,-2858.63566706,0.00014281,7]
[330838643,1719852643461,-684.6855422,0.00014303,2]
[330838644,1719852643470,-599.6047738,0.00014916,2]
[330838645,1719852643479,-640.0,0.00015474,2]
[330838646,1719852643488,-599.6047738,0.00015852,2]
[330838647,1719852643498,-539.0,0.00016,2]
[330838648,1719852643507,-11482.0,0.000164,3]
[330838649,1719852643516,-599.6047738,0.00016787,2]
[330838650,1719852643525,-11482.0,0.000168,5]
[330838651,1719852643534,-410.08,0.00016828,2]
[330838652,1719852643544,-250.0,0.00017219,2]
[330838653,1719852643553,-640.0,0.00017408,2]
[330838654,1719852643563,-599.6047738,0.00017723,2]
[330838655,1719852643572,-360.0,0.00017922,2]
[330838656,1719852643582,-599.6047738,0.00018658,2]
[330838657,1719852643592,-1142.16,0.00018849,30]
[330838658,1719852643601,-173.13061546,0.00018864,2]
[330838659,1719852643611,-312.67486614,0.00018899,2]
[330838660,1719852643620,-212.9,0.00018917,2]
[330838661,1719852643630,-227.0716558,0.00019069,2]
[330838662,1719852643639,-410.08,0.00019092,2]
[330838663,1719852643648,-250.0,0.00019178,2]
[330838664,1719852643658,-150.19,0.00019178,2]
[330838665,1719852643667,-640.0,0.00019342,2]
[330838666,1719852643677,-483.00146508,0.00019389,2]
[330838667,1719852643686,-599.6047738,0.00019594,2]
[330838668,1719852643695,-360.0,0.00020162,2]
[330838669,1719852643704,-1368.840284,0.000205,5]
[330838670,1719852643714,-2500.0,0.000205,2]
[330838671,1719852643723,-599.6047738,0.00020529,2]
[330838672,1719852643733,-151.0,0.00020887,30]
[330838673,1719852643742,-15218.41166043,0.00020888,10]
[330838674,1719852643751,-400.0,0.000209,7]
[330838675,1719852643760,-2857.87787195,0.000209,2]
[330838676,1719852643769,-2857.87787195,0.0002099,2]
[330838677,1719852643778,-1250.0,0.00021,2]
[330838678,1719852643787,-900.0,0.00021,7]
[330838679,1719852643796,-1300.0,0.000211,7]
[330838680,1719852643805,-1800.0,0.000212,7]
[330838681,1719852643815,-640.0,0.00021276,2]
[330838682,1719852643824,-2200.0,0.000213,7]
[330838683,1719852643833,-151.0,0.00021313,7]
[330838684,1719852643842,-410.08,0.00021356,2]
[330838685,1719852643852,-400.0,0.000214,7]
[330838686,1719852643861,-2857.87787195,0.00021465,2]
[330838687,1719852643871,-599.6047738,0.00021465,2]
[330838688,1719852643880,-500.0,0.00021485,2]
[330838689,1719852643889,-400.0,0.000215,7]
[330838690,1719852643899,-150.19,0.00021575,2]
[330838691,1719852643908,-400.0,0.000216,7]
[330838692,1719852643916,-296.8,0.00021644,2]
[330838693,1719852643926,-155.22,0.00021644,2]
[330838694,1719852643935,-544.35602,0.0002169,2]
[330838695,1719852643944,-400.0,0.000217,7]
[330838696,1719852643954,-500.0,0.00021737,2]
[330838697,1719852643963,-200.0,0.00021737,2]
[330838698,1719852643972,-151.0,0.00021748,4]
[330838699,1719852643981,-2857.87787195,0.00021797,2]
[330838700,1719852643990,-812.0,0.000218,7]
[330838701,1719852644000,-2000.0,0.000218,7]
[330838702,1719852644009,-3768.5956,0.00021807,2]
[330838703,1719852644018,-5715.7557439,0.00021807,2]
[330838704,1719852644027,-151.84120511,0.00021807,2]
[330838705,1719852644036,-193.26382296,0.00021807,2]
[330838706,1719852644046,-219.04,0.00021808,2]
[330838707,1719852644055,-179.81821662,0.00021816,2]
[330838708,1719852644064,-25000.0,0.00021817,2]
[330838709,1719852644075,-1812.07860039,0.00021817,2]
[330838710,1719852644084,-201.39580508,0.00021817,2]
[330838711,1719852644094,-5057.87355334,0.00021817,2]
[330838712,1719852644103,-710.20580608,0.00021817,2]
[330838713,1719852644112,-172.52775424,0.00021817,4]
[330838714,1719852644122,-12762.29138076,0.00021822,3]
[330838715,1719852644130,-2857.87787195,0.00021828,2]
[330838716,1719852644140,-1812.07860036,0.0002187,2]
[330838717,1719852644154,-20005.1451037,0.00021877,2]
[330838718,1719852644163,-11431.5114878,0.00021886,2]
[330838719,1719852644172,-185.46399961,0.00021886,2]
[330838720,1719852644181,-8573.63361585,0.00021887,2]
[330838721,1719852644192,-177.16381561,0.00021896,2]
[330838722,1719852644202,-10872.85576545,0.00021897,2]
[330838723,1719852644214,-9152.45876887,0.00021897,2]
[330838724,1719852644226,-4526.756931,0.00021897,2]
[330838725,1719852644239,-1168.82938228,0.00021897,2]
[330838726,1719852644248,-200.0,0.00021897,2]
[330838727,1719852644256,-12689.74412295,0.00021897,2]
[330838728,1719852644276,-276.03969957,0.00021897,2]
[330838729,1719852644287,-7039.36128118,0.00021897,2]
[330838730,1719852644298,-201.0,0.000219,4]
[330838731,1719852644307,-1001.74,0.000219,2]
[330838732,1719852644316,-183.0,0.00021902,2]
[330838733,1719852644326,-200.50954428,0.00021906,2]
[330838734,1719852644334,-14289.3893598,0.00021907,2]
[330838735,1719852644343,-185.46399961,0.00021907,2]
[330838736,1719852644352,-716.21074661,0.00021911,2]
[330838737,1719852644361,-156.03660824,0.00021916,2]
[330838738,1719852644370,-1000.0,0.00021916,2]
[330838739,1719852644379,-2909.66931605,0.00021916,2]
[330838740,1719852644388,-150.0,0.00021916,2]
[330838741,1719852644398,-3029.79675124,0.00021917,7]
[330838742,1719852644409,-279.39378656,0.00021917,7]
[330838745,1719852646246,-255.99257949,0.00019863,2]
[330838746,1719852646256,-1756.75259974,0.00021917,7]
[330838747,1719852646267,-231766.11004936,0.00021917,7]
[330838748,1719852646276,-239.37403151,0.00021917,5]
[330838749,1719852646286,-3311.71,0.00021917,4]
[330838750,1719852646295,-3311.71,0.00021917,4]
[330838751,1719852646304,-3311.71,0.00021917,4]
[330838752,1719852646313,-3311.71,0.00021917,4]
[330838753,1719852646322,-3311.71,0.00021917,4]
[330838754,1719852646331,-3311.71,0.00021917,4]
[330838755,1719852646340,-3311.71,0.00021917,4]
[330838756,1719852646349,-3311.71,0.00021917,4]
[330838757,1719852646358,-3311.71,0.00021917,4]
[330838758,1719852646367,-3311.71,0.00021917,4]
[330838759,1719852646376,-3311.71,0.00021917,4]
[330838760,1719852646386,-3311.71,0.00021917,4]
[330838761,1719852646395,-3311.71,0.00021917,4]
[330838762,1719852646404,-3311.71,0.00021917,4]
[330838763,1719852646413,-3311.71,0.00021917,4]
[330838764,1719852646422,-3311.71,0.00021917,4]
[330838765,1719852646432,-3311.71,0.00021917,4]
[330838766,1719852646441,-3311.71,0.00021917,4]
[330838767,1719852646450,-3311.71,0.00021917,4]
[330838768,1719852646460,-3311.71,0.00021917,4]
[330838769,1719852646469,-3311.71,0.00021917,4]
[330838770,1719852646478,-3311.71,0.00021917,4]
[330838771,1719852646487,-3311.71,0.00021917,4]
[330838772,1719852646496,-3311.77528302,0.00021917,4]
[330838773,1719852646505,-19591.96,0.00021917,4]
[330838774,1719852646515,-19591.96,0.00021917,4]
[330838775,1719852646525,-19591.96,0.00021917,4]
[330838776,1719852646534,-19591.96,0.00021917,4]
[330838777,1719852646544,-19591.96,0.00021917,4]
[330838778,1719852646553,-19591.96,0.00021917,4]
[330838779,1719852646563,-19591.96,0.00021917,4]
[330838780,1719852646572,-19591.96,0.00021917,4]
[330838781,1719852646582,-19591.96,0.00021917,4]
[330838782,1719852646591,-19591.96,0.00021917,4]
[330838783,1719852646600,-19591.96,0.00021917,4]
[330838784,1719852646610,-19591.96,0.00021917,4]
[330838785,1719852646619,-19591.96,0.00021917,4]
[330838786,1719852646629,-19591.96,0.00021917,4]
[330838787,1719852646639,-19591.96,0.00021917,4]
[330838788,1719852646648,-19591.96,0.00021917,4]
[330838789,1719852646658,-19591.96,0.00021917,4]
[330838790,1719852646667,-19591.96,0.00021917,4]
[330838791,1719852646678,-19591.96,0.00021917,4]
[330838792,1719852646687,-19591.96,0.00021917,4]
[330838793,1719852646697,-19591.96,0.00021917,4]
[330838794,1719852646708,-19591.96,0.00021917,4]
[330838795,1719852646719,-19591.96,0.00021917,4]
[330838796,1719852646728,-19592.0901,0.00021917,4]
[330838797,1719852646738,-500.0,0.00021917,4]
[330838798,1719852646749,-2433.53,0.00021917,4]
[330838799,1719852646760,-2433.53,0.00021917,4]
[330838800,1719852646770,-2433.53,0.00021917,4]
[330838801,1719852646780,-2433.53,0.00021917,4]
[330838802,1719852646789,-2433.53,0.00021917,4]
[330838803,1719852646799,-2433.53,0.00021917,4]
[330838804,1719852646809,-2433.53,0.00021917,4]
[330838805,1719852646818,-2433.53,0.00021917,4]
[330838806,1719852646828,-2433.53,0.00021917,4]
[330838807,1719852646838,-2433.53,0.00021917,4]
[330838808,1719852646848,-2433.53,0.00021917,4]
[330838809,1719852646857,-2433.53,0.00021917,4]
[330838810,1719852646867,-2433.53,0.00021917,4]
[330838811,1719852646877,-2433.53,0.00021917,4]
[330838812,1719852646886,-2433.53,0.00021917,4]
[330838813,1719852646896,-2433.53,0.00021917,4]
[330838814,1719852646906,-2433.53,0.00021917,4]
[330838815,1719852646916,-2433.53,0.00021917,4]
[330838816,1719852646926,-2433.53,0.00021917,4]
[330838817,1719852646936,-2433.53,0.00021917,4]
[330838818,1719852646946,-2433.53,0.00021917,4]
[330838819,1719852646957,-2433.53,0.00021917,4]
[330838820,1719852646967,-2433.53,0.00021917,4]
[330838821,1719852646977,-2433.64092103,0.00021917,4]
[330838822,1719852646987,-237.5861601,0.00021917,4]
[330838823,1719852646997,-500.0,0.00021917,4]
[330838824,1719852647007,-500.0,0.00021917,4]
[330838825,1719852647016,-500.0,0.00021917,4]
[330838826,1719852647026,-500.0,0.00021917,4]
[330838827,1719852647036,-500.0,0.00021917,4]
[330838828,1719852647046,-164.08995209,0.00021917,4]
[330838829,1719852647056,-500.0,0.00021917,4]
[330838830,1719852647066,-500.0,0.00021917,4]
[330838831,1719852647080,-500.0,0.00021917,4]
[330838832,1719852647090,-500.0,0.00021917,4]
[330838833,1719852647099,-500.0,0.00021917,4]
[330838834,1719852647108,-500.0,0.00021917,4]
[330838835,1719852647118,-500.0,0.00021917,4]
[330838836,1719852647127,-500.0,0.00021917,4]
[330838837,1719852647136,-500.0,0.00021917,4]
[330838838,1719852647150,-500.0,0.00021917,4]
[330838839,1719852647160,-500.0,0.00021917,4]
[330838840,1719852647170,-500.0,0.00021917,4]
[330838841,1719852647180,-861.98,0.00021917,4]
[330838842,1719852647191,-500.0,0.00021917,4]
[330838843,1719852647201,-500.0,0.00021917,4]
[330838844,1719852647212,-861.98,0.00021917,4]
[330838845,1719852647221,-500.0,0.00021917,4]
[330838846,1719852647230,-861.98,0.00021917,4]
[330838847,1719852647242,-500.0,0.00021917,4]
[330838848,1719852647252,-500.0,0.00021917,4]
[330838849,1719852647262,-500.0,0.00021917,4]
[330838850,1719852647272,-861.98,0.00021917,4]
[330838851,1719852647281,-500.0,0.00021917,4]
[330838852,1719852647291,-500.0,0.00021917,4]
[330838853,1719852647301,-861.98,0.00021917,4]
[330838854,1719852647311,-500.0,0.00021917,4]
[330838855,1719852647320,-500.0,0.00021917,4]
[330838856,1719852647331,-861.98,0.00021917,4]
[330838857,1719852647341,-500.0,0.00021917,4]
[330838858,1719852647351,-500.0,0.00021917,4]
[330838859,1719852647360,-631.11,0.00021917,4]
[330838860,1719852647370,-861.98,0.00021917,4]
[330838861,1719852647380,-861.98,0.00021917,4]
[330838862,1719852647390,-500.0,0.00021917,4]
[330838863,1719852647399,-500.0,0.00021917,4]
[330838864,1719852647409,-861.98,0.00021917,4]
[330838865,1719852647418,-500.0,0.00021917,4]
[330838866,1719852647427,-500.0,0.00021917,4]
[330838867,1719852647437,-500.0,0.00021917,4]
[330838868,1719852647447,-500.0,0.00021917,4]
[330838869,1719852647457,-861.98,0.00021917,4]
[330838870,1719852647764,-500.0,0.00021917,4]
[330838871,1719852647774,-500.0,0.00021917,4]
[330838872,1719852647783,-500.0,0.00021917,4]
[330838873,1719852647792,-861.98,0.00021917,4]
[330838874,1719852647802,-500.0,0.00021917,4]
[330838875,1719852647811,-861.98,0.00021917,4]
[330838876,1719852647820,-500.0,0.00021917,4]
[330838877,1719852647830,-861.98,0.00021917,4]
[330838878,1719852647840,-500.0,0.00021917,4]
[330838879,1719852647849,-861.98,0.00021917,4]
[330838880,1719852647859,-500.0,0.00021917,4]
[330838881,1719852647868,-500.0,0.00021917,4]
[330838882,1719852647877,-500.0,0.00021917,4]
[330838883,1719852647886,-500.0,0.00021917,4]
[330838884,1719852647895,-861.98,0.00021917,4]
[330838885,1719852647904,-500.0,0.00021917,4]
[330838886,1719852647913,-861.98,0.00021917,4]
[330838887,1719852647922,-500.0,0.00021917,4]
[330838888,1719852647931,-277.92,0.00021917,4]
[330838889,1719852647940,-500.0,0.00021917,4]
[330838890,1719852647949,-861.98,0.00021917,4]
[330838891,1719852647960,-325.71347524,0.00021917,4]
[330838892,1719852647969,-500.0,0.00021917,4]
[330838893,1719852647978,-500.0,0.00021917,4]
[330838894,1719852647987,-861.98,0.00021917,4]
[330838895,1719852647996,-500.0,0.00021917,4]
[330838896,1719852648005,-500.0,0.00021917,4]
[330838897,1719852648014,-500.0,0.00021917,4]
[330838898,1719852648023,-861.98,0.00021917,4]
[330838899,1719852648031,-500.0,0.00021917,4]
[330838900,1719852648040,-500.0,0.00021917,4]
[330838901,1719852648050,-500.0,0.00021917,4]
[330838902,1719852648059,-861.98,0.00021917,4]
[330838903,1719852648068,-500.0,0.00021917,4]
[330838904,1719852648078,-500.0,0.00021917,4]
[330838905,1719852648088,-500.0,0.00021917,4]
[330838906,1719852648097,-500.0,0.00021917,4]
[330838907,1719852648107,-500.0,0.00021917,4]
[330838908,1719852648116,-500.0,0.00021917,4]
[330838909,1719852648126,-861.98,0.00021917,4]
[330838910,1719852648136,-473.84,0.00021917,4]
[330838911,1719852648146,-861.98,0.00021917,4]
[330838912,1719852648159,-500.0,0.00021917,4]